fUSD/lending_fUSD_20250302
["ID","MTS","AMOUNT","RATE_DAILY","PERIOD"]
[355144059,1740935442695,-500.0,0.00026271,2]
[355144065,1740935442706,-500.0,0.00026271,2]
[355144068,1740935442717,-500.0,0.00026271,2]
[355144071,1740935442727,-500.0,0.00026271,2]
[355144074,1740935442738,-500.0,0.00026271,2]
[355144077,1740935442747,-500.0,0.00026271,2]
[355144080,1740935442757,-500.0,0.00026271,2]
[355144081,1740935442767,-500.0,0.00026271,2]
[355144083,1740935442777,-500.0,0.00026271,2]
[355144085,1740935442787,-623.05,0.00026271,2]
[355144086,1740935442797,-513.34034371,0.00026271,2]
[355144087,1740935442807,-500.0,0.00026271,2]
[355144088,1740935442820,-500.0,0.00026271,2]
[355144089,1740935442831,-500.0,0.00026271,2]
[355144090,1740935442841,-500.0,0.00026271,2]
[355144091,1740935442851,-500.0,0.00026271,2]
[355144092,1740935442860,-500.0,0.00026271,2]
[355144093,1740935442870,-500.0,0.00026271,2]
[355144094,1740935442881,-500.0,0.00026271,2]
[355144095,1740935442897,-500.0,0.00026271,2]
[355144096,1740935442906,-500.0,0.00026271,2]
[355144097,1740935442917,-630.46,0.00026271,2]
[355144098,1740935442927,-500.0,0.00026271,2]
[355144099,1740935442937,-500.0,0.00026271,2]
[355144100,1740935442946,-659.2,0.00026271,2]
[355144101,1740935442956,-500.0,0.00026271,2]
[355144102,1740935442966,-500.0,0.00026271,2]
[355144103,1740935442976,-500.0,0.00026271,2]
[355144104,1740935442987,-500.0,0.00026271,2]
[355144105,1740935442998,-500.0,0.00026271,2]
[355144106,1740935443009,-500.0,0.00026271,2]
[355144107,1740935443019,-500.0,0.00026271,2]
[355144108,1740935443028,-500.0,0.00026271,2]
[355144109,1740935443038,-508.29742621,0.00026271,2]
[355144110,1740935443048,-500.0,0.00026271,2]
[355144111,1740935443058,-500.0,0.00026271,2]
[355144112,1740935443068,-500.0,0.00026271,2]
[355144113,1740935443081,-500.0,0.00026271,2]
[355144114,1740935443091,-702.63,0.00026271,2]
[355144115,1740935443101,-500.0,0.00026271,2]
[355144116,1740935443111,-500.0,0.00026271,2]
[355144117,1740935443123,-500.0,0.00026271,2]
[355144118,1740935443135,-500.0,0.00026271,2]
[355144119,1740935443145,-500.0,0.00026271,2]
[355144120,1740935443157,-500.0,0.00026271,2]
[355144121,1740935443167,-500.0,0.00026271,2]
[355144122,1740935443176,-500.0,0.00026271,2]
[355144123,1740935443186,-464.57552248,0.00026271,2]
[355144124,1740935443197,-500.0,0.00026271,2]
[355144125,1740935443207,-936.9,0.00026271,2]
[355144126,1740935443217,-500.0,0.00026271,2]
[355144127,1740935443228,-667.96,0.00026271,2]
[355144128,1740935443238,-500.0,0.00026271,2]
[355144129,1740935443247,-500.0,0.00026271,2]
[355144130,1740935443258,-554.57,0.00026271,2]
[355144131,1740935443267,-540.43346642,0.00026271,2]
[355144132,1740935443277,-247.93436125,0.00026271,2]
[355144133,1740935443287,-500.0,0.00026271,2]
[355144134,1740935443297,-509.84446448,0.00026271,2]
[355144135,1740935443306,-500.0,0.00026271,2]
[355144136,1740935443316,-500.0,0.00026271,2]
[355144137,1740935443326,-329.21,0.00026271,2]
[355144138,1740935443335,-500.0,0.00026271,2]
[355144139,1740935443345,-500.0,0.00026271,2]
[355144140,1740935443355,-1025.03,0.00026271,2]
[355144141,1740935443365,-500.0,0.00026271,2]
[355144142,1740935443375,-500.0,0.00026271,2]
[355144143,1740935443386,-500.0,0.00026271,2]
[355144144,1740935443396,-1055.0,0.00026271,2]
[355144145,1740935443406,-513.13701869,0.00026271,2]
[355144146,1740935443415,-523.26,0.00026271,2]
[355144147,1740935443424,-511.04869783,0.00026271,2]
[355144148,1740935443434,-500.0,0.00026271,2]
[355144149,1740935443444,-500.0,0.00026271,2]
[355144150,1740935443454,-200.80408017,0.00026271,2]
[355144151,1740935443475,-299.19591983,0.00026271,2]
[355144152,1740935443485,-500.0,0.00026271,2]
[355144153,1740935443494,-500.0,0.00026271,2]
[355144154,1740935443503,-500.0,0.00026271,2]
[355144155,1740935443512,-662.32,0.00026271,2]
[355144156,1740935443521,-500.0,0.00026271,2]
[355144157,1740935443531,-500.0,0.00026271,2]
[355144158,1740935443541,-500.0,0.00026271,2]
[355144159,1740935443550,-500.0,0.00026271,2]
[355144160,1740935443560,-500.0,0.00026271,2]
[355144161,1740935443570,-506.9393608,0.00026271,2]
[355144162,1740935443580,-500.0,0.00026271,2]
[355144163,1740935443591,-500.0,0.00026271,2]
[355144164,1740935443601,-974.95,0.00026271,2]
[355144165,1740935443611,-500.0,0.00026271,2]
[355144166,1740935443621,-231.13,0.00026271,2]
[355144167,1740935443634,-926.01,0.00026271,2]
[355144168,1740935443646,-500.0,0.00026271,2]
[355144169,1740935443656,-500.0,0.00026271,2]
[355144170,1740935443666,-500.0,0.00026271,2]
[355144171,1740935443677,-500.0,0.00026271,2]
[355144172,1740935443687,-509.24779914,0.00026271,2]
[355144174,1740935443696,-512.3557328,0.00026271,2]
[355144175,1740935443706,-1119.61,0.00026271,2]
[355144177,1740935443717,-283.3064111,0.00026271,2]
[355144179,1740935443727,-500.0,0.00026271,2]
[355144181,1740935443737,-1676.49,0.00026271,2]
[355144183,1740935443747,-502.5,0.00026271,2]
[355144184,1740935443756,-722.94,0.00026271,2]
[355144186,1740935443766,-500.0,0.00026271,2]
[355144187,1740935443776,-500.0,0.00026271,2]
[355144188,1740935443786,-500.0,0.00026271,2]
[355144189,1740935443795,-703.35,0.00026271,2]
[355144190,1740935443805,-1854.52,0.00026271,2]
[355144191,1740935443815,-500.0,0.00026271,2]
[355144192,1740935443825,-510.49379351,0.00026271,2]
[355144193,1740935443835,-1030.9,0.00026271,2]
[355144194,1740935443845,-1915.68,0.00026271,2]
[355144195,1740935443855,-500.0,0.00026271,2]
[355144197,1740935443866,-500.0,0.00026271,2]
[355144199,1740935443877,-500.0,0.00026271,2]
[355144201,1740935443890,-382.06181144,0.00026271,2]
[355144204,1740935443900,-500.0,0.00026271,2]
[355144208,1740935443911,-186.87783803,0.00026271,2]
[355144211,1740935443925,-313.12216197,0.00026271,2]
[355144214,1740935443935,-504.30413832,0.00026271,2]
[355144216,1740935443945,-500.0,0.00026271,2]
[355144218,1740935443955,-858.49369971,0.00026271,2]
[355144222,1740935443982,-370.67952595,0.00026271,2]
[355144224,1740935443994,-444.23677434,0.00026271,2]
[355144226,1740935444004,-545.42762093,0.00026271,2]
[355144228,1740935444015,-500.0,0.00026271,2]
[355144230,1740935444025,-1951.2,0.00026271,2]
[355144232,1740935444035,-500.0,0.00026271,2]
[355144234,1740935444046,-500.0,0.00026271,2]
[355144236,1740935444055,-500.0,0.00026271,2]
[355144238,1740935444066,-102.56799634,0.00026271,2]
[355144241,1740935444080,-397.43200366,0.00026271,2]
[355144243,1740935444090,-500.0,0.00026271,2]
[355144244,1740935444100,-939.62896026,0.00026271,2]
[355144247,1740935444533,-539.01028549,0.00025721,2]
[355144248,1740935444555,-294.75971451,0.00025721,2]
[355144249,1740935444566,-833.77,0.00025995,2]
[355144250,1740935444575,-833.77,0.00026269,2]
[355144251,1740935444585,-1060.34103974,0.00026271,2]
[355144252,1740935444594,-500.0,0.00026271,2]
[355144253,1740935444604,-500.0,0.00026271,2]
[355144254,1740935444614,-336.85369764,0.00026271,2]
[355144255,1740935444623,-1168.67,0.00026271,2]
[355144256,1740935444633,-500.0,0.00026271,2]
[355144257,1740935444645,-500.0,0.00026271,2]
[355144258,1740935444654,-500.0,0.00026271,2]
[355144259,1740935444663,-500.0,0.00026271,2]
[355144260,1740935444673,-85.52899633,0.00026271,2]
[355144261,1740935444689,-414.47100367,0.00026271,2]
[355144262,1740935444699,-500.0,0.00026271,2]
[355144263,1740935444709,-500.0,0.00026271,2]
[355144264,1740935444719,-903.16,0.00026271,2]
[355144265,1740935444728,-500.0,0.00026271,2]
[355144266,1740935444738,-500.0,0.00026271,2]
[355144267,1740935444748,-500.0,0.00026271,2]
[355144268,1740935444758,-511.11349447,0.00026271,2]
[355144269,1740935444768,-500.0,0.00026271,2]
[355144270,1740935444777,-1488.34,0.00026271,2]
[355144271,1740935444786,-564.03726991,0.00026271,2]
[355144272,1740935444796,-500.0,0.00026271,2]
[355144273,1740935444806,-500.0,0.00026271,2]
[355144274,1740935444815,-500.0,0.00026271,2]
[355144275,1740935444825,-500.0,0.00026271,2]
[355144276,1740935444834,-1386.61,0.00026271,2]
[355144277,1740935444844,-577.75137617,0.00026271,2]
[355144278,1740935444854,-500.0,0.00026271,2]
[355144279,1740935444864,-532.75880197,0.00026271,2]
[355144280,1740935444874,-2329.47,0.00026271,2]
[355144281,1740935444885,-500.0,0.00026271,2]
[355144282,1740935444898,-556.08,0.00026271,2]
[355144283,1740935444908,-500.0,0.00026271,2]
[355144284,1740935444918,-500.0,0.00026271,2]
[355144285,1740935444928,-500.0,0.00026271,2]
[355144286,1740935444938,-500.0,0.00026271,2]
[355144287,1740935444948,-500.0,0.00026271,2]
[355144288,1740935444958,-500.0,0.00026271,2]
[355144289,1740935444969,-257.81834491,0.00026271,2]
[355144290,1740935444980,-509.4,0.00026271,2]
[355144291,1740935444992,-500.0,0.00026271,2]
[355144292,1740935445002,-835.62,0.00026271,2]
[355144293,1740935445012,-1574.12,0.00026271,2]
[355144294,1740935445024,-500.0,0.00026271,2]
[355144295,1740935445034,-500.0,0.00026271,2]
[355144296,1740935445044,-500.0,0.00026271,2]
[355144297,1740935445054,-500.0,0.00026271,2]
[355144298,1740935445065,-500.0,0.00026271,2]
[355144299,1740935445075,-500.0,0.00026271,2]
[355144300,1740935445085,-503.74,0.00026271,2]
[355144301,1740935445097,-1294.32,0.00026271,2]
[355144302,1740935445108,-500.0,0.00026271,2]
[355144303,1740935445120,-500.0,0.00026271,2]
[355144304,1740935445130,-500.0,0.00026271,2]
[355144305,1740935445144,-500.0,0.00026271,2]
[355144306,1740935445154,-500.0,0.00026271,2]
[355144307,1740935445163,-500.0,0.00026271,2]
[355144308,1740935445177,-500.0,0.00026271,2]
[355144309,1740935445188,-578.71,0.00026271,2]
[355144310,1740935445198,-543.72,0.00026271,2]
[355144311,1740935445209,-500.0,0.00026271,2]
[355144312,1740935445220,-500.0,0.00026271,2]
[355144313,1740935445230,-500.0,0.00026271,2]
[355144314,1740935445240,-518.58,0.00026271,2]
[355144315,1740935445250,-500.0,0.00026271,2]
[355144316,1740935445259,-500.0,0.00026271,2]
[355144317,1740935445269,-384.96991205,0.00026271,2]
[355144318,1740935445279,-500.0,0.00026271,2]
[355144319,1740935445288,-500.0,0.00026271,2]
[355144320,1740935445298,-500.0,0.00026271,2]
[355144321,1740935445308,-1450.0,0.00026271,2]
[355144322,1740935445318,-500.0,0.00026271,2]
[355144324,1740935445330,-600.63,0.00026271,2]
[355144326,1740935445341,-500.0,0.00026271,2]
[355144327,1740935445352,-500.0,0.00026271,2]
[355144329,1740935445362,-500.0,0.00026271,2]
[355144331,1740935445373,-500.0,0.00026271,2]
[355144332,1740935445383,-500.0,0.00026271,2]
[355144334,1740935445399,-500.0,0.00026271,2]
[355144336,1740935445411,-1587.21,0.00026271,2]
[355144338,1740935445422,-500.0,0.00026271,2]
[355144340,1740935445434,-500.0,0.00026271,2]
[355144341,1740935445444,-500.0,0.00026271,2]
[355144343,1740935445455,-500.0,0.00026271,2]
[355144345,1740935445466,-500.0,0.00026271,2]
[355144346,1740935445477,-500.0,0.00026271,2]
[355144348,1740935445488,-363.78518784,0.00026271,2]
[355144350,1740935445500,-1341.09,0.00026271,2]
[355144351,1740935445511,-500.0,0.00026271,2]
[355144352,1740935445521,-500.0,0.00026271,2]
[355144353,1740935445530,-500.0,0.00026271,2]
[355144354,1740935445541,-1065.46,0.00026271,2]
[355144356,1740935445551,-500.0,0.00026271,2]
[355144357,1740935445561,-728.14,0.00026271,2]
[355144358,1740935445571,-500.0,0.00026271,2]
[355144359,1740935445580,-1506.0,0.00026271,2]
[355144361,1740935445589,-500.0,0.00026271,2]
[355144363,1740935445599,-259.31696255,0.00026271,2]
[355144364,1740935445609,-500.0,0.00026271,2]
[355144365,1740935445618,-500.0,0.00026271,2]
[355144366,1740935445628,-612.9420316,0.00026271,2]
[355144367,1740935445641,-892.25,0.00026271,2]
[355144368,1740935445865,-2199.47,0.00026271,2]
[355144369,1740935445878,-500.0,0.00026271,2]
[355144370,1740935445895,-500.0,0.00026271,2]
[355144371,1740935445905,-500.0,0.00026271,2]
[355144372,1740935445916,-500.0,0.00026271,2]
[355144373,1740935445927,-500.0,0.00026271,2]
[355144374,1740935445938,-500.0,0.00026271,2]
[355144375,1740935445949,-500.0,0.00026271,2]
[355144376,1740935445960,-3288.2,0.00026271,2]
[355144377,1740935445971,-500.0,0.00026271,2]
[355144378,1740935445981,-500.0,0.00026271,2]
[355144379,1740935445991,-500.0,0.00026271,2]
[355144380,1740935446002,-1561.67,0.00026271,2]
[355144381,1740935446013,-500.0,0.00026271,2]
[355144382,1740935446023,-500.0,0.00026271,2]
[355144383,1740935446033,-509.79755735,0.00026271,2]
[355144384,1740935446043,-500.0,0.00026271,2]
[355144385,1740935446053,-500.0,0.00026271,2]
[355144386,1740935446064,-500.0,0.00026271,2]
[355144387,1740935446075,-500.0,0.00026271,2]
[355144388,1740935446089,-500.0,0.00026271,2]
[355144389,1740935446100,-500.0,0.00026271,2]
[355144390,1740935446111,-500.0,0.00026271,2]
[355144391,1740935446121,-500.0,0.00026271,2]
[355144392,1740935446134,-223.33562076,0.00026272,2]
[355144393,1740935446147,-36918.2047,0.00026272,2]
[355144394,1740935446159,-500.0,0.00026272,2]
[355144395,1740935446171,-1806.3342,0.00026272,2]
[355144396,1740935446182,-3509.5044,0.00026272,2]
[355144397,1740935446193,-14463.3977,0.00026272,2]
[355144398,1740935446203,-834.1244,0.00026272,2]
[355144399,1740935446214,-4513.0718,0.00026273,2]
[355144400,1740935446224,-710.26498118,0.00026279,4]
[355144401,1740935446235,-1284.47,0.00026369,2]
[355144402,1740935446247,-3353.57,0.00026369,2]
[355144403,1740935446260,-511.12,0.00026369,2]
[355144404,1740935446272,-1041.28,0.00026369,2]
[355144405,1740935446282,-1046.36,0.00026369,2]
[355144406,1740935446292,-1263.84,0.00026369,2]
[355144407,1740935446303,-1350.8,0.00026369,2]
[355144408,1740935446314,-1000.0,0.00026369,2]
[355144409,1740935446324,-500.0,0.00026369,2]
[355144410,1740935446334,-500.0,0.00026369,2]
[355144411,1740935446344,-1787.98,0.00026369,2]
[355144412,1740935446353,-797.85,0.00026369,2]
[355144413,1740935446363,-567.88,0.00026369,2]
[355144414,1740935446373,-2952.97,0.00026369,2]
[355144415,1740935446383,-2310.14,0.00026369,2]
[355144416,1740935446397,-500.0,0.00026371,2]
[355144417,1740935446407,-500.0,0.00026371,2]
[355144418,1740935446418,-500.0,0.00026371,2]
[355144419,1740935446428,-500.0,0.00026371,2]
[355144420,1740935446438,-500.0,0.00026371,2]
[355144421,1740935446448,-599.61,0.00026371,2]
[355144422,1740935446458,-500.0,0.00026371,2]
[355144423,1740935446469,-500.0,0.00026371,2]
[355144424,1740935446480,-500.0,0.00026371,2]
[355144425,1740935446489,-500.0,0.00026371,2]
[355144426,1740935446499,-500.0,0.00026371,2]
[355144427,1740935446509,-500.0,0.00026371,2]
[355144428,1740935446519,-500.0,0.00026371,2]
[355144429,1740935446530,-500.0,0.00026371,2]
[355144430,1740935446539,-426.39,0.00026371,2]
[355144431,1740935446549,-660.18,0.00026371,2]
[355144432,1740935446559,-524.39,0.00026371,2]
[355144433,1740935446570,-517.78447664,0.00026371,2]
[355144434,1740935446580,-500.0,0.00026371,2]
[355144435,1740935446590,-713.07,0.00026371,2]
[355144436,1740935446600,-500.0,0.00026371,2]
[355144437,1740935446611,-500.0,0.00026371,2]
[355144438,1740935446620,-892.51,0.00026371,2]
[355144439,1740935446632,-522.46,0.00026371,2]
[355144440,1740935446645,-796.82,0.00026371,2]
[355144441,1740935446656,-500.0,0.00026371,2]
[355144442,1740935446667,-716.78,0.00026371,2]
[355144443,1740935446677,-500.0,0.00026371,2]
[355144444,1740935446689,-500.0,0.00026371,2]
[355144445,1740935446701,-522.84,0.00026371,2]
[355144446,1740935446711,-509.90139424,0.00026371,2]
[355144447,1740935446720,-500.0,0.00026371,2]
[355144448,1740935446730,-500.0,0.00026371,2]
[355144449,1740935446740,-500.49599449,0.00026371,2]
[355144450,1740935446753,-500.0,0.00026371,2]
[355144451,1740935446763,-626.56,0.00026371,2]
[355144452,1740935446773,-500.0,0.00026371,2]
[355144453,1740935446783,-822.36,0.00026371,2]
[355144454,1740935446793,-500.0,0.00026371,2]
[355144455,1740935446804,-527.31,0.00026371,2]
[355144456,1740935446814,-894.8,0.00026371,2]
[355144457,1740935446825,-620.84,0.00026371,2]
[355144458,1740935446835,-483.52451144,0.00026371,2]
[355144459,1740935446845,-500.0,0.00026371,2]
[355144460,1740935446856,-517.03,0.00026371,2]
[355144461,1740935446866,-576.06,0.00026371,2]
[355144462,1740935446876,-500.0,0.00026371,2]
[355144463,1740935446890,-608.42,0.00026371,120]
[355144464,1740935446900,-714.53,0.00026371,2]
[355144465,1740935446911,-500.0,0.00026371,2]
[355144466,1740935446920,-821.68,0.00026371,2]
[355144467,1740935446931,-737.08,0.00026371,2]
[355144468,1740935446941,-500.0,0.00026371,2]
[355144469,1740935446951,-822.77,0.00026371,2]
[355144470,1740935446960,-500.0,0.00026371,2]
[355144471,1740935446970,-4000.0,0.00026371,2]
[355144472,1740935446980,-500.0,0.00026371,2]
[355144473,1740935446990,-386.12680067,0.00026371,2]
[355144474,1740935447000,-500.0,0.00026371,2]
[355144476,1740935447010,-500.0,0.00026371,2]
[355144478,1740935447019,-500.0,0.00026371,2]
[355144480,1740935447029,-500.0,0.00026371,2]
[355144482,1740935447039,-500.0,0.00026371,2]
[355144483,1740935447048,-500.0,0.00026371,2]
[355144484,1740935447058,-500.0,0.00026371,2]
[355144486,1740935447069,-500.0,0.00026371,2]
[355144488,1740935447081,-500.0,0.00026371,2]
[355144490,1740935447091,-500.0,0.00026371,2]
[355144492,1740935447105,-500.0,0.00026371,2]
[355144493,1740935447116,-564.65,0.00026371,2]
[355144495,1740935447127,-686.05,0.00026371,2]
[355144497,1740935447140,-500.0,0.00026371,2]
[355144499,1740935447152,-500.0,0.00026371,2]
[355144501,1740935447162,-507.87,0.00026371,2]
[355144503,1740935447172,-500.0,0.00026371,2]
[355144505,1740935447183,-715.08,0.00026371,2]
[355144507,1740935447193,-500.0,0.00026371,2]
[355144509,1740935447204,-990.17,0.00026371,2]
[355144511,1740935447215,-1023.69,0.00026371,2]
[355144513,1740935447225,-1082.81,0.00026371,2]
[355144515,1740935447235,-500.0,0.00026371,2]
[355144517,1740935447245,-1016.12,0.00026371,2]
[355144518,1740935447255,-500.0,0.00026371,2]
[355144520,1740935447265,-1067.19,0.00026371,2]
[355144521,1740935447275,-804.98,0.00026371,2]
[355144522,1740935447285,-1183.26,0.00026371,2]
[355144523,1740935447295,-500.0,0.00026371,2]
[355144524,1740935447306,-614.27,0.00026371,2]
[355144525,1740935447316,-503.75504299,0.00026372,2]
[355144526,1740935447327,-500.0,0.00026372,2]
[355144527,1740935447338,-500.0,0.00026372,2]
[355144528,1740935447348,-502.74441494,0.00026372,2]
[355144529,1740935447357,-503.79276677,0.00026372,2]
[355144530,1740935447367,-500.0,0.00026372,2]
[355144531,1740935447378,-500.0,0.00026372,2]
[355144532,1740935447389,-500.0,0.00026372,2]
[355144533,1740935447399,-532.20619946,0.00026372,2]
[355144534,1740935447409,-500.0,0.00026372,2]
[355144535,1740935447420,-501.8213571,0.00026372,2]
[355144536,1740935447430,-500.0,0.00026372,2]
[355144537,1740935447440,-500.0,0.00026372,2]
[355144538,1740935447450,-543.00350051,0.00026372,2]
[355144539,1740935447460,-500.0,0.00026372,2]
[355144540,1740935447470,-544.93648386,0.00026372,2]
[355144541,1740935447480,-500.0,0.00026372,2]
[355144542,1740935447490,-500.0,0.00026372,2]
[355144543,1740935447500,-500.0,0.00026372,2]
[355144544,1740935447510,-513.96975391,0.00026372,2]
[355144545,1740935447521,-542.522687,0.00026372,2]
[355144546,1740935447531,-500.0,0.00026372,2]
[355144547,1740935447540,-500.0,0.00026372,2]
[355144548,1740935447550,-500.0,0.00026372,2]
[355144549,1740935447559,-500.0,0.00026372,2]
[355144550,1740935447570,-500.0,0.00026372,2]
[355144551,1740935447579,-500.0,0.00026372,2]
[355144552,1740935447588,-500.0,0.00026372,2]
[355144553,1740935447598,-500.0,0.00026372,2]
[355144554,1740935447609,-589.94,0.00026372,2]
[355144555,1740935447619,-500.0,0.00026372,2]
[355144556,1740935447629,-538.63,0.00026372,2]
[355144557,1740935447643,-500.0,0.00026372,2]
[355144558,1740935447653,-500.0,0.00026372,2]
[355144559,1740935447663,-500.0,0.00026372,2]
[355144560,1740935447674,-500.0,0.00026372,2]
[355144561,1740935447684,-500.0,0.00026372,2]
[355144562,1740935447694,-556.5522471,0.00026372,2]
[355144563,1740935447703,-500.0,0.00026372,2]
[355144564,1740935447713,-500.0,0.00026372,2]
[355144565,1740935447724,-500.0,0.00026372,2]
[355144566,1740935447734,-500.0,0.00026372,2]
[355144567,1740935447744,-500.0,0.00026372,2]
[355144568,1740935447754,-500.0,0.00026372,2]
[355144569,1740935447764,-500.0,0.00026372,2]
[355144570,1740935447775,-500.0,0.00026372,2]
[355144571,1740935447787,-612.0204175,0.00026372,2]
[355144572,1740935447799,-500.0,0.00026372,2]
[355144573,1740935447808,-500.0,0.00026372,2]
[355144574,1740935447819,-500.0,0.00026372,2]
[355144575,1740935447828,-500.0,0.00026372,2]
[355144576,1740935447839,-500.0,0.00026372,2]
[355144577,1740935447849,-500.0,0.00026372,2]
[355144578,1740935447859,-500.0,0.00026372,2]
[355144579,1740935447870,-500.0,0.00026372,2]
[355144580,1740935447880,-500.0,0.00026372,2]
[355144581,1740935447897,-500.0,0.00026372,2]
[355144582,1740935447911,-500.0,0.00026372,2]
[355144583,1740935447921,-500.0,0.00026372,2]
[355144584,1740935447932,-500.0,0.00026372,2]
[355144585,1740935447946,-500.0,0.00026372,2]
[355144586,1740935447956,-500.0,0.00026372,2]
[355144587,1740935447966,-1526.5,0.00026372,2]
[355144588,1740935447976,-500.0,0.00026372,2]
[355144589,1740935447986,-500.0,0.00026372,2]
[355144590,1740935447996,-500.0,0.00026372,2]
[355144591,1740935448007,-662.97,0.00026372,2]
[355144592,1740935448018,-500.0,0.00026372,2]
[355144593,1740935448028,-500.0,0.00026372,2]
[355144594,1740935448040,-500.0,0.00026372,2]
[355144595,1740935448050,-500.0,0.00026372,2]
[355144596,1740935448062,-511.66902209,0.00026372,2]
[355144597,1740935448073,-1074.83,0.00026372,2]
[355144598,1740935448090,-502.69779652,0.00026372,2]
[355144599,1740935448101,-500.0,0.00026372,2]
[355144600,1740935448111,-500.0,0.00026372,2]
[355144601,1740935448124,-500.0,0.00026372,2]
[355144602,1740935448135,-500.0,0.00026372,2]
[355144603,1740935448150,-533.37528816,0.00026372,2]
[355144604,1740935448162,-500.0,0.00026372,2]
[355144605,1740935448173,-500.0,0.00026372,2]
[355144606,1740935448183,-899.42,0.00026372,2]
[355144607,1740935448194,-500.0,0.00026372,2]
[355144608,1740935448205,-500.0,0.00026372,2]
[355144609,1740935448216,-511.86504425,0.00026372,2]
[355144610,1740935448226,-500.0,0.00026372,2]
[355144611,1740935448236,-500.0,0.00026372,2]
[355144612,1740935448247,-567.22177391,0.00026372,2]
[355144613,1740935448258,-500.0,0.00026372,2]
[355144614,1740935448267,-500.0,0.00026372,2]
[355144615,1740935448278,-500.0,0.00026372,2]
[355144616,1740935448288,-514.49155346,0.00026372,2]
[355144617,1740935448298,-500.0,0.00026372,2]
[355144618,1740935448308,-500.0,0.00026372,2]
[355144619,1740935448318,-669.98,0.00026372,2]
[355144620,1740935448329,-500.78219175,0.00026372,2]
[355144621,1740935448339,-500.0,0.00026372,2]
[355144622,1740935448349,-500.0,0.00026372,2]
[355144623,1740935448359,-500.0,0.00026372,2]
[355144624,1740935448368,-500.0,0.00026372,2]
[355144625,1740935448378,-500.0,0.00026372,2]
[355144626,1740935448393,-500.0,0.00026372,2]
[355144627,1740935448403,-500.0,0.00026372,2]
[355144628,1740935448413,-500.0,0.00026372,2]
[355144629,1740935448422,-500.0,0.00026372,2]
[355144630,1740935448434,-500.0,0.00026372,2]
[355144631,1740935448444,-500.0,0.00026372,2]
[355144632,1740935448455,-500.0,0.00026372,2]
[355144633,1740935448562,-500.0,0.00026372,2]
[355144634,1740935448572,-500.0,0.00026372,2]
[355144635,1740935448581,-500.0,0.00026372,2]
[355144636,1740935448592,-500.0,0.00026372,2]
[355144637,1740935448601,-500.0,0.00026372,2]
[355144638,1740935448610,-500.0,0.00026372,2]
[355144639,1740935448620,-500.0,0.00026372,2]
[355144640,1740935448630,-500.0,0.00026372,2]
[355144641,1740935448644,-500.0,0.00026372,2]
[355144642,1740935448654,-500.0,0.00026372,2]
[355144643,1740935448664,-500.0,0.00026372,2]
[355144644,1740935448674,-151.07795441,0.00026372,2]
[355144645,1740935448684,-500.0,0.00026372,2]
[355144646,1740935448694,-500.0,0.00026372,2]
[355144647,1740935448705,-500.0,0.00026372,2]